Cogmind - Beta 16 @@@ ROGUE MODE // 2025.12.16 @ 20:16:31 // Winter2019/RPGLIKE Player: Gallgagger Result: Destroyed by C-35 Carver with Carbide Saw Performance ------------- Evolutions (5) 2500 Regions Visited (14) 2800 Robots Destroyed (363) 1815 Value Destroyed (14004) 14004 Prototype IDs (34) 680 Alien Tech Used (0) 0 Bonus (4726) 4726 TOTAL SCORE: 26525 Bonus ------- High Alert Combat Kills 2596 Follower Combat Kills 78 Forged Quantum Companion 1000 Registered with UFD 300 Met Optimus in HQ 500 Met Data Miner 300 Friendly Fire -48 Cogmind --------- Core Integrity 0/1500 Matter 295/300 Energy 420/420 System Corruption 0% Temperature Cool (0) Movement Hovering (52) Location -5/Factory Parts ------- > --- POWER (2) -------- Light Neutrino Core Enhanced Fission Core > --- PROPULSION (5) --- Gravmag Array Gravmag Array Antigrav System > --- UTILITY (10) ----- Triangulator Advanced Signal Interpreter Improved Melee Analysis Suite Improved Melee Analysis Suite Improved Melee Analysis Suite Advanced Melee Analysis Suite Force Booster Advanced System Shield > --- WEAPON (4) ------- LU-1G1's Laser Shovel Quantum Companion > --- INVENTORY (4) ---- Light Nuclear Core Advanced Weight Redist. System Tech Extrapolator Peak State ------------ > --- POWER ------------ Light Neutrino Core Enhanced Fission Core > --- PROPULSION ------- Gravmag Array Gravmag Array Antigrav System > --- UTILITY ---------- Triangulator Advanced Signal Interpreter Improved Melee Analysis Suite Improved Melee Analysis Suite Improved Melee Analysis Suite Advanced Melee Analysis Suite Force Booster Improved Reaction Control System Improved Thermal Shield Advanced System Shield > --- WEAPON ----------- LU-1G1's Laser Shovel Quantum Companion > --- INVENTORY -------- Light Nuclear Core Advanced Weight Redist. System Tech Extrapolator [Rating: 108] Favorites ----------- Power Light Nuclear Core Engine Light Ion Engine Power Core Light Nuclear Core Propulsion Airjet Leg Thunder Leg Wheel Compact Wheel Hover Unit Airjet Flight Unit Flight Unit Utility Improved Melee Analysis Suite Device Advanced Weight Redist. System Processor Improved Melee Analysis Suite Hackware Hacking Suite Protection Light Armor Plating Weapon Beam Rifle Energy Gun Beam Rifle Ballistic Gun Autogun Special Weapon CPS Tube Impact Weapon Mace Slashing Weapon Companion Sword Build | -11 -10 -10 -9 -9 -9 -9 -6 -6 -6 -6 -6 -6 -5 -5 ------- Run | Yrd Mat Min Mat Sto Rec Scr Fac Was Fac Low Low Dat Pro Fac Slots Evolved 17 | 3 2 2 4 . . . 2 . 1 . . . 2 1 Power 1 | . 1 . . . . . . . . . . . . . Propulsion 4 | 1 1 . 1 . . . . . . . . . 1 . Utility 9 | 1 . 2 1 . . . 2 . 1 . . . 1 1 Weapon 3 | 1 . . 2 . . . . . . . . . . . Parts Attached 97 | 8 4 4 16 . . 7 17 . 10 . 4 . 5 22 Power 13 | 1 . 1 2 . . . 1 . 1 . 2 . . 5 Engine 4 | 1 . . 1 . . . . . . . 1 . . 1 Core 9 | . . 1 1 . . . 1 . 1 . 1 . . 4 Reactor . | . . . . . . . . . . . . . . . Propulsion 24 | 2 4 1 4 . . 1 3 . 2 . . . . 7 Treads . | . . . . . . . . . . . . . . . Leg 1 | . . . . . . . . . . . . . . 1 Wheel 2 | 2 . . . . . . . . . . . . . . Hover 13 | . . . 4 . . 1 3 . 2 . . . . 3 Flight 8 | . 4 1 . . . . . . . . . . . 3 Utility 45 | 2 . 2 4 . . 3 10 . 7 . 2 . 5 10 Device 21 | 2 . 1 1 . . 1 3 . 4 . . . 3 6 Storage . | . . . . . . . . . . . . . . . Processor 10 | . . . . . . 1 3 . 2 . 1 . 1 2 Hackware 4 | . . . 1 . . . 1 . . . . . . 2 Protection 10 | . . 1 2 . . 1 3 . 1 . 1 . 1 . Artifact . | . . . . . . . . . . . . . . . Weapon 15 | 3 . . 6 . . 3 3 . . . . . . . Energy Gun 3 | 1 . . 2 . . . . . . . . . . . Energy Cannon . | . . . . . . . . . . . . . . . Ballistic Gun 7 | 2 . . 4 . . . 1 . . . . . . . Ballistic Cannon . | . . . . . . . . . . . . . . . Launcher . | . . . . . . . . . . . . . . . Special Weapon 3 | . . . . . . 2 1 . . . . . . . Impact Weapon 1 | . . . . . . 1 . . . . . . . . Slashing Weapon 1 | . . . . . . . 1 . . . . . . . Piercing Weapon . | . . . . . . . . . . . . . . . Special Melee Weapon . | . . . . . . . . . . . . . . . Unidentified Prototypes 13 | . . 1 2 . . 1 5 . 1 . . . . 3 Parts Lost 18 | . 1 . 1 . . . 4 . 3 . 1 . 4 4 Power 2 | . . . . . . . . . . . . . 1 1 Propulsion 5 | . 1 . . . . . 1 . 1 . . . 2 . Utility 10 | . . . 1 . . . 3 . 1 . 1 . 1 3 Weapon 1 | . . . . . . . . . 1 . . . . . Highest Loss Streak 2 | . 1 . 1 . . . 2 . 1 . 1 . 1 1 To Critical Strikes . | . . . . . . . . . . . . . . . Average Backups 2 | . . 1 1 1 1 1 3 4 3 4 3 3 2 3 Power . | . . . . . . . . . . . . . . . Propulsion . | . . . . . . . . . . . . . . . Utility 1 | . . . 1 1 1 . 1 2 2 3 2 2 1 1 Weapon . | . . . . . . . 1 1 . . . . . . Tool/Special . | . . . . . . . . . . . . . . . Unused Backups 2 | . . . . . . . . . . . . . . 2 Power . | . . . . . . . . . . . . . . . Propulsion . | . . . . . . . . . . . . . . . Utility 2 | . . . . . . . . . . . . . . 2 Weapon . | . . . . . . . . . . . . . . . Tool/Special . | . . . . . . . . . . . . . . . Average Slot Usage (%) 86 | . 94 89 95 100 100 99 83 82 77 83 82 77 69 74 Engine 2 | . 12 10 1 . . . . . . 5 3 . . 1 Core 8 | . . 5 12 13 13 13 12 11 6 5 6 11 7 8 Hover 17 | . . . 17 26 26 26 24 23 21 22 22 22 13 13 Flight 3 | . 20 30 9 . . . . . . . . . . . Device 18 | . 25 20 20 20 20 19 14 11 13 16 14 11 18 19 Processor 11 | . . . . . . . 12 17 20 22 26 22 20 20 Hackware 2 | . . . 5 6 6 3 . . . . . . . 2 Protection 4 | . . 3 6 6 6 8 3 5 4 5 1 5 3 2 Energy Gun 5 | . 12 10 8 13 13 11 . . . . . . . . Ballistic Gun 5 | . 12 10 8 13 13 12 . . . . . . . . Special Weapon 1 | . . . . . . . 5 5 2 . . . . . Slashing Weapon 2 | . . . . . . . 5 5 5 5 5 5 5 4 Peak Build Rating 108 | 9 10 27 38 38 38 55 76 73 75 73 80 70 71 108 Average Rating 52 | 7 9 12 30 38 38 39 58 73 71 73 74 70 66 89 On Entrance 46 | . 9 10 15 38 38 38 47 73 73 73 73 70 70 63 Avg Prop Armor Cover (%) 9 | . . . . . . . . . 5 . . . . 9 Naked Turns . | . . . . . . . . . . . . . . . Heaviest Build 50 | 9 9 17 27 27 27 50 44 37 41 21 36 36 36 37 Greatest Support 68 | 37 37 17 51 51 51 52 54 57 60 44 44 44 48 68 Greatest Overweight (x) 1 | . . . 1 . . . . . . . . . . 1 Average Overweight (x) . | . . . . . . . . . . . . . . . Largest Inventory Capacity 4 | 2 2 2 3 3 3 4 4 4 4 4 4 4 4 4 Average Capacity 3 | 2 2 2 2 3 3 3 4 4 4 4 4 4 4 4 Most Carried 4 | . . 2 3 3 3 4 4 4 4 4 4 3 4 4 Average Carried 2 | . . 1 2 2 3 2 3 4 3 4 3 3 2 3 Final Capacity 4 | 2 2 2 3 3 3 4 4 4 4 4 4 4 4 4 Final Carried 4 | . . 2 2 3 3 4 4 4 4 4 3 3 3 3 Class Distribution -------------------- 42% | Mutant 23% | Scavenger-Gunner 18% | Scavenger-Mutant 13% | Hacker-Mutant Dominant Class ---------------- Scavenger-Mutant | -10/Materials Scavenger-Mutant | -10/Mines Scavenger-Mutant | -9/Materials Scavenger-Gunner | -9/Storage Scavenger-Gunner | -9/Recycling Scavenger-Gunner | -9/Scraptown Mutant | -6/Factory Mutant | -6/Waste Mutant | -6/Factory Mutant | -6/Lower Caves Mutant | -6/Lower Caves Mutant | -6/Data Miner Mutant | -5/Proximity Caves Hacker-Mutant | -5/Factory Resources | -11 -10 -10 -9 -9 -9 -9 -6 -6 -6 -6 -6 -6 -5 -5 ----------- Run | Yrd Mat Min Mat Sto Rec Scr Fac Was Fac Low Low Dat Pro Fac Matter Collected 3037 | 298 260 71 949 424 56 . 269 . 205 36 84 . 110 275 Remotely . | . . . . . . . . . . . . . . . Salvage Created 14590 | 142 1007 129 2474 1510 151 113 1219 . 2354 276 1057 . 732 3426 Parts 836 | 14 68 13 173 99 6 8 78 . 137 17 34 . 30 159 Haulers Intercepted 13 | . . . 4 3 . . 1 . 2 . . . . 3 Recyclers Shooed 1 | . . . 1 . . . . . . . . . . . Parts Field Recycled . | . . . . . . . . . . . . . . . Retrieved Matter . | . . . . . . . . . . . . . . . Parts Self-Destructed 85 | . . . . . . 1 . . . 15 37 . 32 . Prevented . | . . . . . . . . . . . . . . . Parts Restored . | . . . . . . . . . . . . . . . Kills | -11 -10 -10 -9 -9 -9 -9 -6 -6 -6 -6 -6 -6 -5 -5 ------- Run | Yrd Mat Min Mat Sto Rec Scr Fac Was Fac Low Low Dat Pro Fac Combat Hostiles Destroyed 307 | . 31 10 56 35 3 1 25 . 42 5 16 . 21 62 Melee 153 | . . . . . . . 25 . 42 4 13 . 19 50 Guns 136 | . 31 10 56 35 3 1 . . . . . . . . Cannons 4 | . . . . . . . . . . . . . . 4 AOE 1 | . . . . . . . . . . 1 . . . . Classes Destroyed 23 | 2 2 1 9 . . 2 2 . . 1 2 . . 2 Worker 13 | . . . 4 1 . . 1 . 4 . . . . 3 Builder 3 | . . . 1 1 . . . . . . . . . 1 Tunneler 6 | 3 . . 3 . . . . . . . . . . . Hauler 13 | . . . 4 3 . . 1 . 2 . . . . 3 Recycler 8 | 1 . . 1 . 1 . . . 2 . . . . 3 Minesweeper 1 | . . . . . . . . . . 1 . . . . Mechanic 2 | . . . . . . . . . . . . . . 2 Operator 2 | . . . 1 . . . . . 1 . . . . . Watcher 8 | . . . 3 1 . . 2 . . . . . . 2 Swarmer 59 | . 6 6 . 7 . . 3 . 4 . 2 . 10 21 Cutter 3 | . . . . . . . . . . . . . . 3 Grunt 165 | . 25 2 43 16 . . 11 . 17 4 12 . 7 28 Brawler 3 | . . . 1 . . . . . 1 . . . . 1 Duelist 7 | . . . 1 1 . . 1 . 3 . . . . 1 Protector 2 | . . . 1 1 . . . . . . . . . . Sentry 38 | . . . 10 10 3 . 4 . 4 1 1 . 1 4 Demolisher 2 | . . 2 . . . . . . . . . . . . Hunter 19 | . . . . . . . 5 . 11 . . . 2 1 Programmer 7 | . . . . . . . 1 . 2 . . . 1 3 Behemoth 1 | . . . . . . . . . . . 1 . . . Scientist 1 | . . . . . . 1 . . . . . . . . Scrapper 1 | . . . . . . 1 . . . . . . . . Samaritan 1 | . . . . . . . . . . . 1 . . . Best Kill Streak 11 | 2 6 6 9 7 1 2 3 . 9 3 6 . 4 11 Combat Bots Only 9 | . 6 6 7 6 1 1 3 . 8 3 6 . 4 9 Max Kills in Single Turn 3 | 1 1 1 2 3 1 2 1 . 1 1 1 . 2 2 Gunslinging 2 | . . . 1 2 . 1 . . . . . . . . Exploded 1 | . . . . . . . . . . 1 . . . . Melee 2 | . . . . . . . 1 . 1 1 1 . 2 2 Uniques/NPCs Destroyed . | . . . . . . . . . . . . . . . Combat | -11 -10 -10 -9 -9 -9 -9 -6 -6 -6 -6 -6 -6 -5 -5 -------- Run | Yrd Mat Min Mat Sto Rec Scr Fac Was Fac Low Low Dat Pro Fac Hostile Shots Fired 1762 | . 110 45 141 59 8 36 333 . 472 40 116 . 110 292 Missed 679 | . 33 12 57 23 2 9 107 . 215 21 49 . 44 107 Deflected 4 | . . . . . . . . . . . . . . 4 Hits 1083 | . 77 33 84 36 6 27 226 . 257 19 67 . 66 185 Melee 23 | . . . 1 . . . 6 . 8 . . . . 8 Projectile 1060 | . 77 33 83 36 6 27 220 . 249 19 67 . 66 177 AOE 7 | . . 5 . . . 1 . . . . . . . 1 Critical Strikes 33 | . . . 2 . 1 4 5 . 6 1 3 . 2 9 Part Disruptions 1 | . . . . . . . . . . . . . . 1 Damage Taken 15642 | . 788 465 1058 461 85 499 2324 . 3716 209 1354 . 1102 3581 Core 11700 | . 637 332 732 345 49 392 1723 . 2600 149 1119 . 744 2878 Absorbed by Shields 360 | . . . . . . 16 344 . . . . . . . Redirected to Core 8824 | . 490 254 613 312 49 350 1322 . 1823 95 849 . 574 2093 Ignored by Resistances 1355 | . . . . . . 9 316 . 410 50 183 . 75 312 Regen/Repaired (Parts) 144 | . 7 . . . . . 56 . 81 . . . . . Core Remaining (%) 61 | 100 . 65 . . . 55 . . . . . . 26 . Volleys Fired 322 | 6 78 18 155 53 7 5 . . . . . . . . Largest 4 | 2 2 2 4 4 4 4 . . . . . . . . Hottest 158 | 70 70 70 158 158 158 102 . . . . . . . . Shots Fired 840 | 12 156 36 382 212 28 14 . . . . . . . . Gun 838 | 12 156 36 382 212 28 12 . . . . . . . . Cannon . | . . . . . . . . . . . . . . . Launcher . | . . . . . . . . . . . . . . . Special 2 | . . . . . . 2 . . . . . . . . Kinetic 420 | 6 78 18 191 106 14 7 . . . . . . . . Thermal 418 | 6 78 18 191 106 14 5 . . . . . . . . Explosive . | . . . . . . . . . . . . . . . Electromagnetic . | . . . . . . . . . . . . . . . Robot Hit Streak 35 | 5 20 6 21 29 24 35 . . . . . . . . Robot Miss Streak 5 | 1 5 2 2 3 . 2 . . . . . . . . Penetration Max . | . . . . . . . . . . . . . . . Secondary Targets 20 | . 1 2 6 10 . 1 . . . . . . . . Max Gunslinging Chain 2 | . 1 1 1 2 . 1 . . . . . . . . Autonomous 9 | . . . . . . . . . . . . . . 9 Shots Hit Robots 1169 | 8 117 25 276 143 22 11 96 . 156 21 63 . 57 174 Core Hits 451 | 5 54 15 100 60 7 3 40 . 59 10 18 . 20 60 Critical Kills 2 | 1 1 . . . . . . . . . . . . . Critical Parts Destroyed 5 | . . . 1 3 . 1 . . . . . . . . Critical Strikes 70 | 3 8 1 15 11 1 1 . . 8 . 8 . 2 12 Burn 33 | 2 7 1 14 8 1 . . . . . . . . . Destroy 7 | 1 1 . 1 3 . 1 . . . . . . . . Melee Attacks 601 | . . . . . . 2 108 . 162 21 69 . 60 179 Impact 3 | . . . . . . 2 1 . . . . . . . Slashing 598 | . . . . . . . 107 . 162 21 69 . 60 179 Piercing . | . . . . . . . . . . . . . . . Sneak Attacks 37 | . . . . . . . 3 . 12 1 6 . 1 14 Combat Hostiles 9 | . . . . . . . . . 2 . 3 . 1 3 Follow-up Attacks 19 | . . . . . . . 2 . 1 . 3 . 3 10 Damage Inflicted 40111 | 99 1526 349 4467 2372 359 144 4008 . 7891 1185 3267 . 2579 11865 Guns 9316 | 99 1526 349 4467 2372 359 144 . . . . . . . . Cannons 829 | . . . . . . . . . . . . . . 829 Explosions . | . . . . . . . . . . . . . . . Melee 29966 | . . . . . . . 4008 . 7891 1185 3267 . 2579 11036 Ramming . | . . . . . . . . . . . . . . . Kinetic 4144 | 36 721 190 1936 1015 148 98 . . . . . . . . Thermal 5172 | 63 805 159 2531 1357 211 46 . . . . . . . . Explosive . | . . . . . . . . . . . . . . . Electromagnetic . | . . . . . . . . . . . . . . . Impact . | . . . . . . . . . . . . . . . Slashing 29966 | . . . . . . . 4008 . 7891 1185 3267 . 2579 11036 Piercing . | . . . . . . . . . . . . . . . Phasic 829 | . . . . . . . . . . . . . . 829 Highest Corruption 7 | . . . . . . 1 1 6 6 6 6 6 7 . Average Corruption 5 | . . . . . . 1 1 4 6 6 6 6 6 . Corruption Purged . | . . . . . . . . . . . . . . . Corruption Blocked . | . . . . . . . . . . . . . . . Effects 90 | . . . . . . . 1 2 34 16 15 1 21 . Message Errors 23 | . . . . . . . . . 8 6 6 . 3 . Matter Fused 20 | . . . . . . . 1 1 9 2 2 . 5 . Heat Flow Errors 14 | . . . . . . . . 1 4 1 3 1 4 . Energy Discharges 9 | . . . . . . . . . 3 3 . . 3 . Parts Rejected 2 | . . . . . . . . . . 1 1 . . . Parts Fused 2 | . . . . . . . . . . . 1 . 1 . Data Loss (minor) 10 | . . . . . . . . . 6 1 1 . 2 . Data Loss (major) 7 | . . . . . . . . . 3 2 . . 2 . Alerts 3 | . . . . . . . . . 1 . 1 . 1 . Overload Shots . | . . . . . . . . . . . . . . . Overflow Damage 2323 | . . . . . . . 134 . 444 52 135 . 182 1376 Projectiles 64 | . . . . . . . . . . . . . . 64 Explosions . | . . . . . . . . . . . . . . . Melee 2259 | . . . . . . . 134 . 444 52 135 . 182 1312 Knockbacks . | . . . . . . . . . . . . . . . Impact . | . . . . . . . . . . . . . . . Kinetic . | . . . . . . . . . . . . . . . Secondary . | . . . . . . . . . . . . . . . Self-Inflicted Damage . | . . . . . . . . . . . . . . . Shots . | . . . . . . . . . . . . . . . Rammed . | . . . . . . . . . . . . . . . Targets Rammed . | . . . . . . . . . . . . . . . Kicked . | . . . . . . . . . . . . . . . Crushed . | . . . . . . . . . . . . . . . Highest Temperature 217 | . . 1 190 . 3 . . 29 191 176 209 217 198 . Average Temperature 45 | . . 1 41 . 3 . . 29 78 95 111 141 93 . Received Heat Transfer 3679 | . 339 45 507 189 45 282 549 . 558 99 351 . 138 577 Siege Activations . | . . . . . . . . . . . . . . . Martial Activations . | . . . . . . . . . . . . . . . Shielding Activations . | . . . . . . . . . . . . . . . Robots Disrupted 3 | . . . . . . . . . 2 . 1 . . . Combat Hostiles 3 | . . . . . . . . . 2 . 1 . . . Robots Corrupted . | . . . . . . . . . . . . . . . Combat Hostiles . | . . . . . . . . . . . . . . . Parts Fried . | . . . . . . . . . . . . . . . Impact Corruptions . | . . . . . . . . . . . . . . . Robots Melted . | . . . . . . . . . . . . . . . Combat Hostiles . | . . . . . . . . . . . . . . . Parts Melted 25 | 1 5 1 6 10 2 . . . . . . . . . Heat Transferred 14839 | 333 2849 518 6919 3566 555 99 . . . . . . . . Parts Sabotaged 1 | . . . . . . . . . 1 . . . . . Parts Stolen . | . . . . . . . . . . . . . . . Parts Stripped 18 | . . . . . . . . . . . . . . 18 Power Chain Reactions . | . . . . . . . . . . . . . . . Alert | -11 -10 -10 -9 -9 -9 -9 -6 -6 -6 -6 -6 -6 -5 -5 ------- Run | Yrd Mat Min Mat Sto Rec Scr Fac Was Fac Low Low Dat Pro Fac Maximum Alert Level 4 | . 2 1 4 4 2 . 2 . 4 . . . . 4 Low Security (%) 25 | 100 35 . 22 . . . 52 100 14 . . . . 28 Level 1 21 | . 30 100 18 9 . . 30 . 17 . . . . 14 Level 2 30 | . 34 . 24 49 100 . 17 . 38 . . . . 19 Level 3 16 | . . . 25 38 . . . . 14 . . . . 30 Level 4 6 | . . . 8 2 . . . . 14 . . . . 7 Level 5 . | . . . . . . . . . . . . . . . High Security . | . . . . . . . . . . . . . . . Max Security . | . . . . . . . . . . . . . . . Sterilizations 1 | . . . 1 . . . . . . . . . . . Peak Influence 1338 | 10 635 384 1338 1119 486 . 474 163 1198 . . . . 1199 Initial 561 | . . 244 137 561 433 . . 163 86 . . . . 60 Average 459 | . 295 323 560 661 453 . 202 148 559 . . . . 535 Influence Increases 9830 | 20 1045 240 1729 1262 163 . 854 . 1684 185 440 . 525 1683 Destroy 0b10 Robot/C 6140 | . 620 200 1100 720 60 . 500 . 840 100 320 . 440 1240 Destroy 0b10 Robot/NC 305 | 20 . . 90 40 5 . 20 . 45 15 . . . 70 Destroy Leader 1274 | . 140 40 304 200 . . 146 . 164 10 30 . 60 180 Allied During Kill 184 | . . . 23 144 7 . . . . . . . 10 . Successful Hack 134 | . 28 . 17 11 . . 36 . 18 . . . . 24 Select Force Hacks 570 | . 210 . 140 130 90 . . . . . . . . . Disable Machine 15 | . . . 15 . . . . . . . . . . . Anti-Garrison Action 300 | . . . . . . . 150 . 150 . . . . . Destroy Structure 23 | . 2 . 10 2 1 . 2 . 2 . . . . 4 Partial Spotted 105 | . . . 30 . . . . . 15 . . . . 60 Lose Combat Pursuer 780 | . 45 . . 15 . . . . 450 60 90 . 15 105 Influence Decreases 8645 | 20 416 515 753 1481 848 426 386 345 609 698 411 714 428 595 Entered New Map 4143 | . . 385 217 769 678 426 . 305 37 444 131 714 . 37 Time Decay 3832 | 20 406 130 526 262 170 . 346 20 542 254 270 . 368 518 Lost Part 180 | . 10 . 10 . . . 40 . 30 . 10 . 40 40 Lost Ally 40 | . . . . . . . . 20 . . . . 20 . Purge Threat 450 | . . . . 450 . . . . . . . . . . Squads Dispatched 73 | . 11 . 16 6 . . 9 . 13 . 1 . 1 16 Investigation 38 | . 9 . 13 3 . . 3 . 5 . 1 . 1 3 Extermination 6 | . . . . . . . 1 . 2 . . . . 3 Reinforcement 14 | . 2 . 1 1 . . 3 . 2 . . . . 5 Assault 12 | . . . 2 1 . . 2 . 4 . . . . 3 Garrison 3 | . . . . 1 . . . . . . . . . 2 Intercept . | . . . . . . . . . . . . . . . Searches Triggered . | . . . . . . . . . . . . . . . Data Miner Redirects 3 | . . . . . . . . . . . . . . 3 Construction Impeded . | . . . . . . . . . . . . . . . Haulers Reinforced 3 | . . . . . . . 1 . . . . . . 2 Active Scanning Responses . | . . . . . . . . . . . . . . . Cargo Convoy Interrupts 1 | . . . . . . . . . 1 . . . . . Stealth | -11 -10 -10 -9 -9 -9 -9 -6 -6 -6 -6 -6 -6 -5 -5 --------- Run | Yrd Mat Min Mat Sto Rec Scr Fac Was Fac Low Low Dat Pro Fac Distress Signals 11 | . 1 . 5 2 . . . . 1 . . . . 2 Communications Jammed 74 | . . . . . . . . . . . . . . 74 Distress Signals 74 | . . . . . . . . . . . . . . 74 Times Spotted 478 | . 43 22 64 40 2 22 30 6 100 7 22 . 23 97 Peak Tracking Total 19 | . 5 19 5 5 1 12 4 6 17 4 7 . 6 8 Tactical Retreats 24 | . 2 2 . 1 . . . . 10 2 1 . 1 5 Traps | -11 -10 -10 -9 -9 -9 -9 -6 -6 -6 -6 -6 -6 -5 -5 ------- Run | Yrd Mat Min Mat Sto Rec Scr Fac Was Fac Low Low Dat Pro Fac Traps Triggered 10 | . 1 . 4 . . . 1 . 2 . . . . 2 Indirectly . | . . . . . . . . . . . . . . . Trap Hack Attempts . | . . . . . . . . . . . . . . . Triggered . | . . . . . . . . . . . . . . . Disarmed . | . . . . . . . . . . . . . . . Reprogrammed 1 | . . . . . . . 1 . . . . . . . Reused 2 | . . . . . . . . . . 2 . . . . Traps Extracted . | . . . . . . . . . . . . . . . Installed 10 | . . . . . . . . . . 10 . . . . Triggered 2 | . . . . . . . . . . 2 . . . . Machines | -11 -10 -10 -9 -9 -9 -9 -6 -6 -6 -6 -6 -6 -5 -5 ---------- Run | Yrd Mat Min Mat Sto Rec Scr Fac Was Fac Low Low Dat Pro Fac Machines Disabled 7 | . . . 1 . . 3 1 . 1 . 1 . . . Max in Single Turn 1 | . . . 1 . . 1 1 . 1 . 1 . . . Garrison Access 8 | . . . . 1 . . 1 . 3 . . . . 3 Machines Repaired . | . . . . . . . . . . . . . . . Machines Dismantled . | . . . . . . . . . . . . . . . Machines Sabotaged 6 | . 3 . 1 2 . . . . . . . . . . Overloaded Fab Kills . | . . . . . . . . . . . . . . . Hacking | -11 -10 -10 -9 -9 -9 -9 -6 -6 -6 -6 -6 -6 -5 -5 --------- Run | Yrd Mat Min Mat Sto Rec Scr Fac Was Fac Low Low Dat Pro Fac Machines Accessed 79 | . 9 1 15 8 3 6 8 . 13 1 1 2 1 11 Terminals 40 | . 6 . 9 6 . . 5 . 8 . 1 . 1 4 Fabricators 5 | . . . . . . . 1 . 1 . . . . 3 Repair Stations 5 | . 1 . 2 . . . 1 . 1 . . . . . Recycling Units 8 | . 2 . 2 1 3 . . . . . . . . . Scanalyzers 3 | . . . 2 . . . . . . . . . . 1 Garrison Access 8 | . . . . 1 . . 1 . 3 . . . . 3 Total Hacks 195 | . 20 1 22 19 3 19 19 . 30 1 7 19 5 30 Successful 129 | . 12 1 17 10 3 19 8 . 12 1 7 19 5 15 Failed 65 | . 8 . 4 9 . . 11 . 18 . . . . 15 Catastrophic 12 | . 1 . . 1 . . 4 . 5 . . . . 1 Database Lockouts 1 | . . . 1 . . . . . . . . . . . Manual 97 | . 21 . 18 12 3 . 13 . 17 . 1 . . 12 Terminals 106 | . 17 . 14 17 . . 13 . 18 . 7 . 5 15 Fabricators 14 | . . . . . . . 2 . 3 . . . . 9 Repair Stations 9 | . 1 . 3 . . . 1 . 4 . . . . . Recycling Units 9 | . 2 . 3 1 3 . . . . . . . . . Scanalyzers 4 | . . . 2 . . . . . . . . . . 2 Garrison Access 13 | . . . . 1 . . 3 . 5 . . . . 4 Terminal Hacks 72 | . 2 1 4 6 . 19 3 . 2 1 7 19 5 3 Record 23 | . . . . . . 11 . . . . 7 . 5 . Part Schematic 13 | . . . . . . . . . 1 . . 10 . 2 Robot Schematic 6 | . . . . . . . . . . . . 6 . . Robot Analysis 10 | . 2 . 2 . . 6 . . . . . . . . Prototype ID Bank 3 | . . . . . . . . . . . . 3 . . Open Door 5 | . . 1 . 2 . 1 . . . 1 . . . . Branch Access Points 2 | . . . . 1 . . . . 1 . . . . . Terminal Index 3 | . . . 1 . . . 1 . . . . . . 1 Fabricator Index 1 | . . . . . . . 1 . . . . . . . Unreport Threat 3 | . . . . 3 . . . . . . . . . . Reprogram Traps 1 | . . . . . . . 1 . . . . . . . Hauler Manifests 1 | . . . 1 . . . . . . . . . . . Proto ID Catalog 1 | . . . . . . 1 . . . . . . . . Fabricator Hacks 6 | . . . . . . . . . 2 . . . . 4 Network Status 1 | . . . . . . . . . . . . . . 1 Load Schematic 3 | . . . . . . . . . 1 . . . . 2 Build 2 | . . . . . . . . . 1 . . . . 1 Repair Station Hacks 1 | . . . . . . . . . 1 . . . . . Refit 1 | . . . . . . . . . 1 . . . . . Recycling Unit Hacks . | . . . . . . . . . . . . . . . Scanalyzer 2 | . . . . . . . . . . . . . . 2 Insert Component 1 | . . . . . . . . . . . . . . 1 Analyze 1 | . . . . . . . . . . . . . . 1 Garrison Access Hacks 6 | . . . . 1 . . . . 2 . . . . 3 Seal Access 6 | . . . . 1 . . . . 2 . . . . 3 Unauthorized Hacks 42 | . 10 . 13 3 3 . 5 . 5 . . . . 3 Terminals 26 | . 7 . 8 2 . . 3 . 3 . . . . 3 Assimilate 1 | . . . 1 . . . . . . . . . . . Botnet 14 | . 3 . 2 . . . 3 . 3 . . . . 3 Sabotage 10 | . 4 . 4 2 . . . . . . . . . . Search 1 | . . . 1 . . . . . . . . . . . Fabricators 2 | . . . . . . . 1 . 1 . . . . . Prioritize 1 | . . . . . . . . . 1 . . . . . Liberate 1 | . . . . . . . 1 . . . . . . . Repair Stations 5 | . 1 . 2 . . . 1 . 1 . . . . . Patch 5 | . 1 . 2 . . . 1 . 1 . . . . . Recycling Units 8 | . 2 . 2 1 3 . . . . . . . . . Tunnel 8 | . 2 . 2 1 3 . . . . . . . . . Scanalyzers 1 | . . . 1 . . . . . . . . . . . Extract 1 | . . . 1 . . . . . . . . . . . Garrison Access . | . . . . . . . . . . . . . . . Data Cores Recovered 1 | . . . . . . . . . 1 . . . . . Used 1 | . . . . . . . . . 1 . . . . . Hacking Detections 38 | . 4 . 4 4 . . 7 . 9 . 1 . 1 8 Full Trace Events 13 | . 2 . . 1 . . 2 . 3 . 1 . 1 3 Feedback Events . | . . . . . . . . . . . . . . . Feedback Blocked . | . . . . . . . . . . . . . . . Robot Schematics Acquired 6 | . . . . . . . . . . . . 6 . . Robots Built . | . . . . . . . . . . . . . . . Authchips . | . . . . . . . . . . . . . . . Time . | . . . . . . . . . . . . . . . Total Robot Build Rating . | . . . . . . . . . . . . . . . Part Schematics Acquired 54 | . . . 11 . . . 6 1 20 . 3 10 . 3 Parts Built 4 | . . . . . . . . . 2 . . . . 2 Authchips . | . . . . . . . . . . . . . . . Time 94 | . . . . . . . . . 47 . . . . 47 Total Part Build Rating 20 | . . . . . . . . . 10 . . . . 10 Part Studies Acquired . | . . . . . . . . . . . . . . . Parts Repaired . | . . . . . . . . . . . . . . . Time . | . . . . . . . . . . . . . . . Parts Recycled . | . . . . . . . . . . . . . . . Recycled Matter . | . . . . . . . . . . . . . . . Retrieved Matter . | . . . . . . . . . . . . . . . Retrieved Components . | . . . . . . . . . . . . . . . Parts Scanalyzed 1 | . . . . . . . . . . . . . . 1 Part Schematics Acquired 1 | . . . . . . . . . . . . . . 1 Parts Damaged . | . . . . . . . . . . . . . . . Bothacking | -11 -10 -10 -9 -9 -9 -9 -6 -6 -6 -6 -6 -6 -5 -5 ------------ Run | Yrd Mat Min Mat Sto Rec Scr Fac Was Fac Low Low Dat Pro Fac Used RIF Installer . | . . . . . . . . . . . . . . . Robots Hacked . | . . . . . . . . . . . . . . . Non-combat . | . . . . . . . . . . . . . . . Combat . | . . . . . . . . . . . . . . . Robot Hacks Applied . | . . . . . . . . . . . . . . . Relay Couplers Released 2 | . . . . . . . 1 . 1 . . . . . Machine Destruction 2 | . . . . . . . 1 . 1 . . . . . Fabnet Peak Effective % . | . . . . . . . . . . . . . . . Robots Rewired . | . . . . . . . . . . . . . . . Allies Hacked . | . . . . . . . . . . . . . . . Hacks Repelled . | . . . . . . . . . . . . . . . Allies | -11 -10 -10 -9 -9 -9 -9 -6 -6 -6 -6 -6 -6 -5 -5 -------- Run | Yrd Mat Min Mat Sto Rec Scr Fac Was Fac Low Low Dat Pro Fac Total Allies 6 | . . 3 1 . . . . 1 . . . . 1 . Largest Group 4 | . . 3 4 4 4 4 . 1 . . . . 1 . Highest-Rated Group 96 | . . 40 50 50 50 50 . 31 . . . . 96 . Highest-Rated Ally 96 | . . 16 16 16 16 16 . 31 . . . . 96 . Total Orders 12 | . . 1 7 3 . 1 . . . . . . . . STAY 9 | . . . 6 3 . . . . . . . . . . FOLLOW 1 | . . . 1 . . . . . . . . . . . EXPLORE 1 | . . . . . . 1 . . . . . . . . RETURN 1 | . . 1 . . . . . . . . . . . . Ally Attacks 43 | . . . . 19 . 8 . 14 . . . . 2 . Total Damage 575 | . . . . 174 . 93 . 214 . . . . 94 . Kills 4 | . . . . 3 . . . . . . . . 1 . Allies Corrupted . | . . . . . . . . . . . . . . . Allies Melted 1 | . . . . . . . . . . . . . 1 . Intel | -11 -10 -10 -9 -9 -9 -9 -6 -6 -6 -6 -6 -6 -5 -5 ------- Run | Yrd Mat Min Mat Sto Rec Scr Fac Was Fac Low Low Dat Pro Fac Active Infowar (turns) 9064 | 86 1002 271 1479 568 345 1182 . . 675 549 596 31 856 1424 Terrain 4495 | 86 1002 271 1479 568 345 744 . . . . . . . . Traps 2 | . . . . . . . . . 2 . . . . . Seismic 4899 | 52 1002 271 1479 568 345 1182 . . . . . . . . Triangulation 4129 | . . . . . . . . . 673 549 596 31 856 1424 Jamming 1203 | . . . . . . . . . . . . . 191 1012 Robot Analysis Total 10 | . 2 . 2 . . 6 . . . . . . . . Derelict Logs Recovered 8 | . . 2 . . . . . . . 1 3 . 2 . Drone Launches 18 | . . 2 . . . 16 . . . . . . . . Drone Recoveries 2 | . . 2 . . . . . . . . . . . . Exploration | -11 -10 -10 -9 -9 -9 -9 -6 -6 -6 -6 -6 -6 -5 -5 ------------- Run | Yrd Mat Min Mat Sto Rec Scr Fac Was Fac Low Low Dat Pro Fac Turns Passed 11091 | 127 1002 271 1479 568 345 1269 959 54 1555 549 596 31 856 1430 Spaces Moved 15391 | 72 1072 516 1736 611 521 2547 1068 144 2183 1090 1037 82 1223 1489 Core 2 | 1 . . . . . . . . . . . . . 1 Treads . | . . . . . . . . . . . . . . . Legs . | . . . . . . . . . . . . . . . Wheels 265 | 71 194 . . . . . . . . . . . . . Hover 13032 | . . . 1076 611 521 2547 1068 144 2183 1090 1037 82 1223 1450 Flight 2092 | . 878 516 660 . . . . . . . . . . 38 Fastest Speed 22 | 50 34 34 34 48 48 48 40 27 22 38 38 38 30 39 Average Speed 43 | 99 46 34 42 48 48 48 45 37 38 38 38 38 43 50 Slowest Speed 114 | 100 100 34 114 48 48 48 52 40 46 38 38 38 46 106 Overloaded Moves 198 | . . . . . . . . 26 155 . . . 17 . Propulsion Burnouts . | . . . . . . . . . . . . . . . Robots Hopped 34 | . 15 11 8 . . . . . . . . . . . Potential Cave-ins 1 | . . . . . . 1 . . . . . . . . Cave-ins Triggered . | . . . . . . . . . . . . . . . Exploration Rate (%) 73 | 3 99 92 94 88 99 88 26 80 41 98 91 70 97 39 Regions Visited 14 Branch Regions 8 Pre-discovered Areas 11 | . 2 . 2 1 3 . . . . 1 2 . . . Known Exits Taken 6 | . . . 1 1 . . . . 1 . 1 1 1 . Unknown Exits Taken 6 | 1 1 1 . . 1 1 . . . 1 . . . . Scrap Searched 18 | . . 2 . . . 7 . . . 2 2 . 5 . Spaces Dug 14 | . . . . . . 9 1 . 2 . . . . 2 Terrain Destroyed 13 | . . . . . . 8 1 . 2 . . . . 2 Melee 2 | . . . . . . . . . 2 . . . . . Projectile . | . . . . . . . . . . . . . . . AOE . | . . . . . . . . . . . . . . . Terrain Rammed . | . . . . . . . . . . . . . . . Walls Destroyed . | . . . . . . . . . . . . . . . Machines Disabled . | . . . . . . . . . . . . . . . Actions | -11 -10 -10 -9 -9 -9 -9 -6 -6 -6 -6 -6 -6 -5 -5 --------- Run | Yrd Mat Min Mat Sto Rec Scr Fac Was Fac Low Low Dat Pro Fac Total 18246 | 112 1397 563 2156 773 600 2579 1390 143 2678 1194 1156 81 1465 1959 Wait 1275 | 25 235 15 172 91 61 3 108 . 223 40 27 . 128 147 Move 15312 | 71 1042 494 1719 610 520 2546 1068 143 2182 1089 1036 81 1222 1489 Hop 32 | . 14 10 8 . . . . . . . . . . . Pick Up 26 | 1 . 1 3 1 . 5 4 . 4 . . . 5 2 Fast Attach 54 | 7 2 3 6 . . 1 11 . 6 1 2 . 2 13 Attach 11 | 1 . 1 2 . . 2 . . 1 . 1 . 1 2 Detach 5 | . . 2 . . . . 1 . . . 1 . . 1 Swap 56 | . 2 1 14 . . 5 6 . 6 . 4 . 4 14 Drop 49 | 1 . 2 7 . . 4 13 . 6 . 3 . 4 9 Fire 322 | 6 78 18 155 53 7 5 . . . . . . . . Melee 573 | . . . . . . 2 106 . 158 21 60 . 57 169 Ram . | . . . . . . . . . . . . . . . Kick . | . . . . . . . . . . . . . . . Crush . | . . . . . . . . . . . . . . . Escape Stasis 2 | . . . . . . . . . . . . . . 2 Rewire 3 | . . . . . . . . . . . 3 . . . Trap 10 | . . . . . . . . . . 10 . . . . Miscellaneous 516 | . 24 16 70 18 12 6 73 . 92 33 19 . 42 111 Route ------- -11/Scrapyard -10/Materials (discovered 5 exits: *Mat x3 / *Min / [*Sub]) -10/Mines (discovered 3 exits: *Mat x2 / [*Exi]) -9/Materials (discovered 4 exits: *Mat x3 / *Sto) -9/Storage (discovered 2 exits: *Mat / *Rec) -9/Recycling (discovered 2 exits: [*Fac] / *Scr) -9/Scraptown -6/Factory -6/Waste -6/Factory (discovered 3 exits: *Fac / *Low x2) -6/Lower Caves -6/Lower Caves (discovered 2 exits: *Fac / *Dat) -6/Data Miner -5/Proximity Caves -5/Factory (discovered 1 exit: Upp) History --------- Turn | Location | Event 1 | -11/Scrapyard | Upgraded with Propulsion slot (x1) 1 | -11/Scrapyard | Upgraded with Utility slot (x1) 1 | -11/Scrapyard | Upgraded with Weapon slot (x1) 12 | -11/Scrapyard | Discovered new exit (range 15) 128 | -11/Scrapyard | Entered Materials 300 | -10/Materials | Build established: Mutant 331 | -10/Materials | Discovered new exit (range 13) 459 | -10/Materials | Reached level 2 611 | -10/Materials | Discovered new exit (range 4) 617 | -10/Materials | Discovered new exit (range 5) 715 | -10/Materials | Reached level 3 720 | -10/Materials | Upgraded with Power slot (x1) 720 | -10/Materials | Upgraded with Propulsion slot (x1) 732 | -10/Materials | Discovered new exit (range 11) 734 | -10/Materials | Build established: Scavenger-Mutant 772 | -10/Materials | Discovered new exit (range 15) 1016 | -10/Materials | Reached level 4 1130 | -10/Materials | Entered Mines 1163 | -10/Mines | Discovered new exit (range 8) 1190 | -10/Mines | Deemed a non-threat by the Exiles lab entrance 1190 | -10/Mines | Discovered new exit (range 5) 1232 | -10/Mines | Received a Rocket Launcher from a helpful Derelict 1242 | -10/Mines | Reached level 5 1255 | -10/Mines | Build established: Mutant 1283 | -10/Mines | Found the Drone Emporium 1283 | -10/Mines | Upgraded with Utility slot (x1) 1283 | -10/Mines | Upgraded with Utility slot (x1) 1283 | -10/Mines | Found Prototype Device 1283 | -10/Mines | Identified Decoy Drone Bay 1300 | -10/Mines | Assembled infested the area 1300 | -10/Mines | Learned 2 Materials zone layouts 1305 | -10/Mines | Assisted by a Guerilla fighting off Assembled 1316 | -10/Mines | Found a hidden stash of uninstalled traps 1364 | -10/Mines | Discovered new exit (range 13) 1382 | -10/Mines | Assisted by bots powering up and referring to "LRC-V3" 1401 | -10/Mines | Entered Materials 1401 | -9/Materials | Accompanied by 3 allies 1402 | -9/Materials | Identified exit to Storage 1403 | -9/Materials | Identified exit to Materials 1403 | -9/Materials | Reached level 6 1497 | -9/Materials | Upgraded with Propulsion slot (x1) 1497 | -9/Materials | Upgraded with Utility slot (x1) 1574 | -9/Materials | Build established: Scavenger-Mutant 1673 | -9/Materials | Discovered exit to Materials (range 8) 1736 | -9/Materials | Reached level 7 1958 | -9/Materials | Reached level 8 2201 | -9/Materials | First assault squad dispatched 2351 | -9/Materials | Central database locked down 2411 | -9/Materials | Reached level 9 2455 | -9/Materials | Upgraded with Weapon slot (x2) 2468 | -9/Materials | Destroyed 7 combat bots 2506 | -9/Materials | Discovered exit to Materials (range 15) 2762 | -9/Materials | Build established: Scavenger-Gunner 2810 | -9/Materials | Sterilization system engaged 2810 | -9/Materials | Non-combat units ordered to evacuate 2836 | -9/Materials | Reached level 10 2880 | -9/Materials | Entered Storage 2880 | -9/Storage | Accompanied by 4 allies 2891 | -9/Storage | Garrison activated, responded to threat 2977 | -9/Storage | Identified exit to Recycling 3068 | -9/Storage | Discovered exit to Materials (range 16) 3219 | -9/Storage | Used back door to open Recycling access 3249 | -9/Storage | Reached level 11 3280 | -9/Storage | First assault squad dispatched 3448 | -9/Storage | Entered Recycling 3448 | -9/Recycling | Accompanied by 4 allies 3567 | -9/Recycling | Scanned before Scraplab entrance 3629 | -9/Recycling | Discovered new exit (range 16) 3765 | -9/Recycling | Entered Scraplab 3769 | -9/Recycling | Discovered new exit (range 3) 3793 | -9/Recycling | Entered Scraptown 3793 | -9/Scraptown | Accompanied by 4 allies 3865 | -9/Scraptown | Visited Comm Corps 3884 | -9/Scraptown | Visited CPS Storage 3895 | -9/Scraptown | Visited Cyclists 3902 | -9/Scraptown | Visited Symbiants 3908 | -9/Scraptown | Visited Bundlers 3948 | -9/Scraptown | Visited UFD Registry 3948 | -9/Scraptown | Registered with UFD as "Pulseshell" 3966 | -9/Scraptown | Visited Science Guys 3982 | -9/Scraptown | Visited LU-1G1's Boring Crew 3992 | -9/Scraptown | Visited DA-N13 Charitable Foundation 4003 | -9/Scraptown | Visited Abandonware Association 4011 | -9/Scraptown | Learned abandonware demo "REBOOT5.EXE" 4022 | -9/Scraptown | Visited Analyses Database 4030 | -9/Scraptown | Visited Sword Containment 4086 | -9/Scraptown | Visited Chapter 10 4093 | -9/Scraptown | Visited Observation Area 4100 | -9/Scraptown | Visited A0-MCA Data Center 4135 | -9/Scraptown | Found DCF Scrap (27 items) 4174 | -9/Scraptown | Discovered new exit (range 3) 4279 | -9/Scraptown | Entered Cyclist Reading Room 4376 | -9/Scraptown | Visited Science Testing Area 4400 | -9/Scraptown | Found Prototype Slashing Weapon 4610 | -9/Scraptown | Visited TADAMA 4624 | -9/Scraptown | Visited Cave Peace 4781 | -9/Scraptown | Learned abandonware demo "OVRCLOCK.EXE" 4950 | -9/Scraptown | Met Optimus 4950 | -9/Scraptown | Accepted into 0bPrime 4989 | -9/Scraptown | Civil war broke out across Scraptown 4994 | -9/Scraptown | Attached CPS modules to VX-M47(c). 4995 | -9/Scraptown | Attacked by Scraptown defenders 4998 | -9/Scraptown | Attached CPS modules to IV-8QJ(c). 5022 | -9/Scraptown | Found Prototype Special Weapon 5022 | -9/Scraptown | Identified LU-1G1's Laser Shovel 5054 | -9/Scraptown | Core integrity fell below 50% 5056 | -9/Scraptown | Lost 7 allies 5062 | -9/Scraptown | Entered Factory 5064 | -6/Factory | Reached level 12 5106 | -6/Factory | Identified Companion Sword 5260 | -6/Factory | Reached level 13 5289 | -6/Factory | Core integrity fell below 50% 5302 | -6/Factory | Discovered new exit (range 10) 5362 | -6/Factory | Tech Extrapolator generated special schematic: Deep Structural Scanner 5386 | -6/Factory | Build established: Mutant 5501 | -6/Factory | Upgraded with Utility slot (x1) 5565 | -6/Factory | Reached level 14 5714 | -6/Factory | Core integrity fell below 20% 5839 | -6/Factory | Reached level 15 5863 | -6/Factory | Upgraded with Utility slot (x1) 6021 | -6/Factory | Sucked down chute 6021 | -6/Factory | Entered Waste 6022 | -6/Waste | Met a frightened Derelict 6028 | -6/Waste | Spotted C-40 Crusher 6032 | -6/Waste | Spotted C-40 Crusher 6036 | -6/Waste | EMP discharged 6036 | -6/Waste | Spotted C-40 Crusher 6036 | -6/Waste | Spotted C-40 Crusher 6037 | -6/Waste | Spotted C-40 Crusher 6057 | -6/Waste | Spotted C-40 Crusher 6062 | -6/Waste | Discovered new exit (range 16) 6075 | -6/Waste | Entered Factory 6219 | -6/Factory | Identified exit to Lower Caves 6237 | -6/Factory | Reached level 16 6363 | -6/Factory | Tech Extrapolator generated special schematic: Mak. Core Shielding 6452 | -6/Factory | Fabricated Imp. Reaction Control System (x2) 6507 | -6/Factory | Reached level 17 6517 | -6/Factory | Upgraded with Utility slot (x1) 6539 | -6/Factory | Destroyed 8 combat bots 6813 | -6/Factory | Destroyed 7 combat bots 6833 | -6/Factory | Spotted B-75 Beast 6930 | -6/Factory | Tech Extrapolator generated special schematic: Machine Rigger 6997 | -6/Factory | Reached level 18 7125 | -6/Factory | First assault squad dispatched 7216 | -6/Factory | Cargo convoy interrupted 7248 | -6/Factory | Discovered new exit (range 10) 7630 | -6/Factory | Entered Lower Caves 7952 | -6/Lower Caves | Attracted the attention of an 0b10 checkpoint 8047 | -6/Lower Caves | Discovered new exit (range 9) 8179 | -6/Lower Caves | Entered another Lower Caves area 8181 | -6/Lower Caves | Reached level 19 8184 | -6/Lower Caves | Discovered new exit (range 11) 8187 | -6/Lower Caves | Learned 8 Factory zone layouts 8209 | -6/Lower Caves | Identified exit to Factory 8265 | -6/Lower Caves | Attracted the attention of an 0b10 base 8358 | -6/Lower Caves | Learned location of 1 exit from Factory 8358 | -6/Lower Caves | Learned location of 1 exit from Research 8358 | -6/Lower Caves | Learned Armory emergency access door positions 8358 | -6/Lower Caves | Learned Armory garrison access intel 8571 | -6/Lower Caves | Spotted B-75 Beast 8625 | -6/Lower Caves | Destroyed B-75 Beast 8668 | -6/Lower Caves | Identified exit to Data Miner 8775 | -6/Lower Caves | Entered Data Miner 8775 | -6/Data Miner | Discovered new exit (range 6) 8783 | -6/Data Miner | Met Data Miner 8798 | -6/Data Miner | Received God Mode back door access code from Data Miner 8806 | -6/Data Miner | Identified exit to Proximity Caves 8806 | -6/Data Miner | Entered Proximity Caves 8808 | -5/Proximity Caves | Reached level 20 8915 | -5/Proximity Caves | Escorted by Enhanced Grunt 8917 | -5/Proximity Caves | Attracted the attention of an 0b10 base 9014 | -5/Proximity Caves | Reached level 21 9022 | -5/Proximity Caves | Upgraded with Propulsion slot (x1) 9022 | -5/Proximity Caves | Upgraded with Utility slot (x1) 9036 | -5/Proximity Caves | Learned Research security intel 9036 | -5/Proximity Caves | Learned Armory security intel 9198 | -5/Proximity Caves | Learned Factory stockpile data 9199 | -5/Proximity Caves | Learned Factory emergency access door positions 9322 | -5/Proximity Caves | Attracted the attention of an 0b10 checkpoint 9662 | -5/Proximity Caves | Entered Factory 9663 | -5/Factory | Identified exit to Upper Caves 9663 | -5/Factory | Core integrity fell below 50% 9702 | -5/Factory | Incoming investigation squad redirected 9714 | -5/Factory | Garrison activated, responded to threat 9821 | -5/Factory | Reached level 22 10039 | -5/Factory | Build established: Hacker-Mutant 10269 | -5/Factory | Forged Quantum Companion 10562 | -5/Factory | First assault squad dispatched 10583 | -5/Factory | Incoming assault squad redirected 10625 | -5/Factory | Reached level 23 10630 | -5/Factory | Incoming assault squad redirected 10689 | -5/Factory | Upgraded with Utility slot (x1) 10697 | -5/Factory | Spotted B-75 Beast 10755 | -5/Factory | Fabricated Imp. Reaction Control System (x2) 10941 | -5/Factory | Destroyed 9 combat bots 11006 | -5/Factory | Core integrity fell below 20% 11092 | -5/Factory | Destroyed by C-35 Carver with Carbide Saw Last Messages --------------- process. 11050_ U-05 Engineer lays Concrete. 11051_ Penetrated by Slug. 11051_ U-05 Engineer lays Concrete. 11052_ ALERT: Suspicious intruders detected, dispatching Cutter reinforcements to area. 11052_ Penetrated by Slug. 11052_ K-01 Serf collects debris. 11052_ U-05 Engineer lays Concrete. 11054_ LU-1G1's Laser Shovel disintegrates Wall. 11054_ Slug penetrates Wall. 11056_ LU-1G1's Laser Shovel disintegrates Wall. 11066_ P-70 Sage destroyed. 11070_ Destroyed Hpw. Shock Rifle. 11070_ Destroyed Antigrav System. 11072_ Destroyed Tesla Rifle. 11073_ Slug penetrates Wall. 11077_ Imp. Thermal Shield destroyed. 11089_ Destroyed Imp. Surge Thruster. 11090_ Imp. Reaction Control System severed. Map ----- +----------------------------------------------------+ | """" #??????????????????# #???????????# #### %% # | | """" #??????????????????# #???????????# " # # | | """" #??????????????????# #??????????## #% " | | """" #??????????????????# #?????????## " " | | #??????????????????# #?????????# % # | | ##+###??????????????????# #????###?## % # | | ??????????????????#[######"###" # | | ##### ??????????????????#*%+ # % %% # | | #???# ??????????????????#=## # # | | #???# ??????????????????# ## # # | | #???# ??????????????????# ## # % # | | ????????????????????????# ## # # | | ????????????????????????#h## # %% %# | | ????????????????????????# ## # % | | ????????????????????????# ## / % # | | ????????????????????????# ## #h # | | ????????????????????????# ########### ### | | ????????????????????????#h#??######## # ?? | | ????????????????????????# #### # """?? | | ????????????????????????# # ""??? | | ????????????????????????###### H # ""??? | | ?????????????????????????????# #??????? | | ?????????????????????????????# #??????? | | ?????????????????????????????# ########??????? | | ??????????????????????######## #?????????????? | | ??????????????????????# @c #?????????????? | | ??????????????????????# c A #?????????????? | | ??????????????????????# #?????????????? | | ??????????????????????# #?????????????? | | ??????????????????????# #?????????????? | | ??????????????????????# ########?????????????? | | ??????????????????????# #????????????????????? | | ????????????????????? #????????????????????? | | ???????????????????? #????????????????????? | | ??????????????????? #????????????????????? | | ?????????????????? #????????????????????? | | ?????????????????? #????????????????????? | | ??????????????????##### #????????????????????? | | ??????????????????????# #????????????????????? | | ??????????????????????# ????????????????????? | | ??????????????????????? ?????????????????????? | | ?????????????????????????????????????????????????? | | ?????????????????????????????????????????????????? | | ????????????+????????????????????????????????????? | | ?????????????????????????????????????????????????? | | ?????????????????????????????????????????????????? | | ?????????????????????????????????????????????????? | | ?????????????????????????????????????????????????? | | ?????????????????????????????????????????????????? | | ?????????????????????????????????????????????????? | +----------------------------------------------------+ Best States ------------- Heat Dissipation 97 Energy Generation 35 Energy Capacity 515 Matter Stores 300 Matter Capacity 300 Sight Range 16 Terrain Scan Range 16 Terrain Scan Density 10 Jamming Range 14 Additional Mass Support 9 Armor Coverage 600 Resistance: KI 20 Resistance: TH 25 Power Shielding 90 Phase Shifting 5 Evasion (%) 70 Melee Accuracy 26 Core Analysis 9 Force Boost 20 Offensive Hacking 27 Defensive Hacking 24 Item Schematics ----------------- Tractor Beam | -9/Materials | Extracted EM Pulse Gun | -9/Materials | Extracted Grenade Launcher | -9/Materials | Extracted Welding Torch | -9/Materials | Extracted Imp. Aluminum Leg | -9/Materials | Extracted Adv. Beam Cannon | -9/Materials | Extracted Sml. Matter Pod | -9/Materials | Extracted Shotgun | -9/Materials | Extracted Mace | -9/Materials | Extracted Lgt. Cannon | -9/Materials | Extracted Imp. Medium Laser | -9/Materials | Extracted Spk. Medium Treads | -6/Factory | Extrapolated Spk. Treads | -6/Factory | Extrapolated Deep Structural Scanner | -6/Factory | Extrapolated Beamcaster | -6/Factory | Extrapolated Mak. Kinetic Plating | -6/Factory | Extrapolated Mak. Heavy Armor Plating | -6/Factory | Extrapolated Hvy. Beamcaster | -6/Waste | Extrapolated Spk. Heavy Treads | -6/Factory | Extrapolated Mak. Coolant Network | -6/Factory | Extrapolated Mak. ECM Suite | -6/Factory | Extrapolated Mak. Core Shielding | -6/Factory | Extrapolated Imp. Reaction Control System | -6/Factory | Hacked 0b10 Decoder Chip [Skirmisher] | -6/Factory | Extrapolated Mak. Power Source | -6/Factory | Extrapolated Mak. Propulsion Shielding | -6/Factory | Extrapolated Mak. Salvage Targeting Computer | -6/Factory | Extrapolated Mak. Light Armor Plating | -6/Factory | Extrapolated 0b10 Decoder Chip [Generic] | -6/Factory | Extrapolated 0b10 Decoder Chip [Scout] | -6/Factory | Extrapolated Mak. Thermal Plating | -6/Factory | Extrapolated Machine Rigger | -6/Factory | Extrapolated Bore Cannon | -6/Factory | Extrapolated Multitool | -6/Factory | Extrapolated Mak. Flight Unit | -6/Factory | Extrapolated Mak. Sensor Array | -6/Factory | Extrapolated Mak. Terrain Scanner | -6/Factory | Extrapolated Tactical Coordination Suite | -6/Factory | Extrapolated Plasma Flamer | -6/Lower Caves | Extrapolated Mak. Medium Armor Plating | -6/Lower Caves | Extrapolated Mak. Ablative Armor | -6/Lower Caves | Extrapolated Combat Drone Bay | -6/Data Miner | Free Lgt. Regenerative Plating | -6/Data Miner | Free Adv. EM Disruption Field | -6/Data Miner | Free Cld. Nuclear Pulse Thruster | -6/Data Miner | Free Plasma Sword | -6/Data Miner | Free Centrium Wheel | -6/Data Miner | Free Quantum Capacitor | -6/Data Miner | Free Matter Neutralizer | -6/Data Miner | Free Hvy. Disruptor Cannon | -6/Data Miner | Free Impulse Thruster Array | -6/Data Miner | Free Microactuators | -5/Factory | Hacked Adv. Weight Redist. System | -5/Factory | Scanalyzed Nanoactuators | -5/Factory | Hacked Robot Schematics ------------------ H-66 Slayer | -6/Data Miner | Free B-60 Warrior | -6/Data Miner | Free M-22 Extractor | -6/Data Miner | Free A-15 Conveyor | -6/Data Miner | Free M-36 Artificer | -6/Data Miner | Free Y-64 Sentinel | -6/Data Miner | Free Fabricated ------------ Imp. Reaction Control System | x2 | -6/Factory Imp. Reaction Control System | x2 | -5/Factory Repaired ---------- Nothing Studied --------- None Alien Tech Used ----------------- None Achievements -------------- None Challenges ------------ None RPGLIKE | -11 -10 -10 -9 -9 -9 -9 -6 -6 -6 -6 -6 -6 -5 -5 --------- Run | Yrd Mat Min Mat Sto Rec Scr Fac Was Fac Low Low Dat Pro Fac Levels Raised 22 | . 3 1 5 1 . . 4 . 3 . 1 . 2 2 XP Earned 36637 | 3000 4964 1513 7078 1898 410 210 5659 200 4456 507 820 220 2537 3165 XP Spent 36000 | 2960 2400 1900 9060 500 . 1000 6060 . 3245 . 680 . 4000 4195 Upgrades 70 | 10 4 2 19 1 . 1 13 . 10 . 4 . 2 4 Power Slot 1 | . 1 . . . . . . . . . . . . . Propulsion Slot 4 | 1 1 . 1 . . . . . . . . . 1 . Utility Slot 9 | 1 . 2 1 . . . 2 . 1 . . . 1 1 Weapon Slot 3 | 1 . . 2 . . . . . . . . . . . Core Integrity 18 | . . . . . . . 4 . 9 . 4 . . 1 Heat Dissipation 12 | 3 . . 9 . . . . . . . . . . . Mass Support 2 | 1 . . 1 . . . . . . . . . . . Inventory Capacity 4 | 2 . . 1 . . 1 . . . . . . . . Ranged Accuracy 4 | 1 2 . 1 . . . . . . . . . . . Melee Accuracy 4 | . . . . . . . 4 . . . . . . . Hack Attack % 3 | . . . . . . . 2 . . . . . . 1 Hack Defense % 2 | . . . . . . . 1 . . . . . . 1 KI Damage % 2 | . . . 1 1 . . . . . . . . . . TH Damage % 2 | . . . 2 . . . . . . . . . . . Protomatter Created 5138 | . 359 121 979 431 110 . 534 . 953 238 209 . 315 889 Integrity Restored 10947 | . 491 313 1326 323 223 126 1638 . 2016 714 438 . 897 2442 Core 10200 | . 467 292 942 253 141 126 1638 . 1850 714 438 . 897 2442 Parts 747 | . 24 21 384 70 82 . . . 166 . . . . . Protomatter Decayed 2242 | . . 90 387 265 32 1120 54 . 164 . 63 . . 67 Game ------ Seed DeliveryConstructTrap Manual? 0 Play Time 02:17:48 Cumulative 486.4 hours Start 2025.12.16 @ 17:00:49 End 2025.12.16 @ 20:16:31 Sessions 1 Manual Loads 0 Difficulty Rogue Special Mode Winter2019/RPGLIKE Game No. 183 Rogue 29 Adventurer 154 Explorer 0 Win Type - Total 19 Types 4/3/3/3/2/1/0/1/1/1 Lore% 94 Gallery% 85 Achievement% 61 Wizard Run 0 Options --------- Layout 2 ASCII 0 Keyboard 0 Movement Numpad Keybinds 0 Fullscreen 2 Font 24/Smallcaps Map View 50x44 Zoom Use 0% Tactical HUD 1 Map Filters NONE Filters NONE Steam 1 RUN: 8f6db4c0-d79c-403b-8c54-d4bb90498015